[Event "*** SCC Grand Prix: Titled Tuesday Blitz"]
[Site "Chess.com"]
[Date "2020.10.13"]
[Round "2"]
[White "crazy_but_lazy"]
[Black "rpragchess"]
[Result "0-1"]
[WhiteElo "2508"]
[BlackElo "2902"]
[TimeControl "180+1"]
[EndTime "10:16:50 PDT"]
[Termination "rpragchess won by resignation"]

1. d4 {[%clk 0:03:00.9]} 1... Nf6 {[%clk 0:03:00.2]} 2. c4 {[%clk 0:03:00.2]}
2... g6 {[%clk 0:03:00.7]} 3. Nc3 {[%clk 0:02:58.1]} 3... Bg7 {[%clk 0:03:01]}
4. Nf3 {[%clk 0:02:58]} 4... O-O {[%clk 0:03:00.9]} 5. g3 {[%clk 0:02:58.6]}
5... d6 {[%clk 0:02:59.3]} 6. Bg2 {[%clk 0:02:58.6]} 6... c6 {[%clk 0:02:57.4]}
7. O-O {[%clk 0:02:58.3]} 7... Bf5 {[%clk 0:02:58.1]} 8. Ne1 {[%clk 0:02:41.7]}
8... Be6 {[%clk 0:02:50.3]} 9. b3 {[%clk 0:02:40.4]} 9... d5 {[%clk 0:02:50.2]}
10. cxd5 {[%clk 0:02:35]} 10... Nxd5 {[%clk 0:02:26]} 11. Nxd5 {[%clk
0:02:33.3]} 11... Bxd5 {[%clk 0:02:24.1]} 12. e4 {[%clk 0:02:33.1]} 12... Be6
{[%clk 0:02:21.5]} 13. Be3 {[%clk 0:02:13.1]} 13... c5 {[%clk 0:01:51.6]} 14. d5
{[%clk 0:01:58]} 14... Bg4 {[%clk 0:01:44]} 15. f3 {[%clk 0:01:50.4]} 15... Bc8
{[%clk 0:01:37.3]} 16. Rc1 {[%clk 0:01:26.3]} 16... b6 {[%clk 0:01:36.2]} 17.
Rf2 {[%clk 0:01:13.9]} 17... e6 {[%clk 0:01:25.7]} 18. Rd2 {[%clk 0:00:59.2]}
18... exd5 {[%clk 0:01:25.7]} 19. Rxd5 {[%clk 0:00:58.5]} 19... Qe8 {[%clk
0:01:26]} 20. Rd2 {[%clk 0:00:40.6]} 20... Nc6 {[%clk 0:01:25.5]} 21. Nd3 {[%clk
0:00:39.5]} 21... Ba6 {[%clk 0:01:09.1]} 22. Bf1 {[%clk 0:00:30.1]} 22... Rd8
{[%clk 0:01:03.3]} 23. Nf4 {[%clk 0:00:28.8]} 23... Bxf1 {[%clk 0:01:00]} 24.
Kxf1 {[%clk 0:00:29.2]} 24... Nd4 {[%clk 0:01:00.5]} 25. Kg2 {[%clk 0:00:17]}
25... f5 {[%clk 0:01:00.3]} 26. Ne2 {[%clk 0:00:14.7]} 26... fxe4 {[%clk
0:00:56.5]} 27. Nxd4 {[%clk 0:00:07.5]} 27... cxd4 {[%clk 0:00:55]} 28. Bxd4
{[%clk 0:00:07.9]} 28... e3 {[%clk 0:00:46.3]} 29. Rd3 {[%clk 0:00:05.6]} 29...
e2 {[%clk 0:00:44.9]} 30. Qd2 {[%clk 0:00:04.2]} 30... Rxd4 {[%clk 0:00:43]} 31.
Rxd4 {[%clk 0:00:04.2]} 31... Bxd4 {[%clk 0:00:43.9]} 32. Qxd4 {[%clk
0:00:04.9]} 32... e1=Q {[%clk 0:00:43.6]} 0-1

[Event "*** SCC Grand Prix: Titled Tuesday Blitz"]
[Site "Chess.com"]
[Date "2020.10.13"]
[Round "2"]
[White "SophieNikoladze"]
[Black "ehrenfeld"]
[Result "0-1"]
[WhiteElo "2256"]
[BlackElo "2476"]
[TimeControl "180+1"]
[EndTime "10:16:50 PDT"]
[Termination "ehrenfeld won by resignation"]

1. d4 {[%clk 0:03:00.9]} 1... f5 {[%clk 0:02:57.9]} 2. Nc3 {[%clk 0:02:59]} 2...
Nf6 {[%clk 0:02:57.2]} 3. Bg5 {[%clk 0:02:55.5]} 3... d5 {[%clk 0:02:57]} 4.
Bxf6 {[%clk 0:02:53.3]} 4... exf6 {[%clk 0:02:56.7]} 5. e3 {[%clk 0:02:53.7]}
5... Be6 {[%clk 0:02:53.7]} 6. Bd3 {[%clk 0:02:54]} 6... Nc6 {[%clk 0:02:52.9]}
7. Qf3 {[%clk 0:02:54.5]} 7... Qd7 {[%clk 0:02:52.7]} 8. Nge2 {[%clk 0:02:54.2]}
8... O-O-O {[%clk 0:02:43.1]} 9. Nf4 {[%clk 0:02:52.9]} 9... Bf7 {[%clk
0:02:38.6]} 10. a3 {[%clk 0:02:46.4]} 10... Ne7 {[%clk 0:02:33.9]} 11. O-O-O
{[%clk 0:02:42.5]} 11... Kb8 {[%clk 0:02:33.3]} 12. Nce2 {[%clk 0:02:33.3]}
12... Nc8 {[%clk 0:02:24.9]} 13. Ng3 {[%clk 0:02:22.3]} 13... g6 {[%clk
0:02:23.5]} 14. h4 {[%clk 0:02:18.8]} 14... h5 {[%clk 0:02:22.8]} 15. Nf1 {[%clk
0:02:05.9]} 15... Qc6 {[%clk 0:02:10.4]} 16. Nd2 {[%clk 0:02:03.8]} 16... Nd6
{[%clk 0:02:07]} 17. Kb1 {[%clk 0:02:03.1]} 17... Ne4 {[%clk 0:02:00.9]} 18. Qe2
{[%clk 0:02:00.4]} 18... Qb6 {[%clk 0:01:56.6]} 19. Ka1 {[%clk 0:01:57.8]} 19...
Bd6 {[%clk 0:01:49.9]} 20. c4 {[%clk 0:01:47.8]} 20... dxc4 {[%clk 0:01:33.8]}
21. Bxc4 {[%clk 0:01:41]} 21... Bxc4 {[%clk 0:00:36.2]} 22. Nxc4 {[%clk
0:01:39.8]} 22... Qa6 {[%clk 0:00:35.9]} 23. Nxg6 {[%clk 0:01:30.6]} 23... Rhg8
{[%clk 0:00:35.7]} 24. Nf4 {[%clk 0:01:20]} 24... Bxf4 {[%clk 0:00:35.5]} 25.
exf4 {[%clk 0:01:19.6]} 25... Rxg2 {[%clk 0:00:35.5]} 26. Rhf1 {[%clk
0:01:12.2]} 26... Rdg8 {[%clk 0:00:28.7]} 27. Rc1 {[%clk 0:01:10.8]} 27... Ng3
{[%clk 0:00:27.2]} 28. Qc2 {[%clk 0:00:45.4]} 28... Nxf1 {[%clk 0:00:27.2]} 29.
Rxf1 {[%clk 0:00:45.3]} 29... Rg1 {[%clk 0:00:27.8]} 30. Rxg1 {[%clk 0:00:43.4]}
30... Rxg1+ {[%clk 0:00:26.3]} 31. Ka2 {[%clk 0:00:43.9]} 31... Qe6 {[%clk
0:00:26]} 32. b3 {[%clk 0:00:28.6]} 32... Qe1 {[%clk 0:00:25]} 33. Qb2 {[%clk
0:00:28.6]} 33... Qc1 {[%clk 0:00:22.2]} 34. a4 {[%clk 0:00:24.7]} 34... Qxb2+
{[%clk 0:00:21.5]} 35. Kxb2 {[%clk 0:00:24.3]} 35... Rh1 {[%clk 0:00:22.1]} 0-1

[Event "*** SCC Grand Prix: Titled Tuesday Blitz"]
[Site "Chess.com"]
[Date "2020.10.13"]
[Round "2"]
[White "GiantThresher"]
[Black "Sadykov_Ramil"]
[Result "1-0"]
[WhiteElo "2831"]
[BlackElo "2553"]
[TimeControl "180+1"]
[EndTime "10:16:52 PDT"]
[Termination "GiantThresher won on time"]

1. e4 {[%clk 0:03:00.9]} 1... c5 {[%clk 0:02:55]} 2. Nf3 {[%clk 0:02:59.9]} 2...
d6 {[%clk 0:02:54.1]} 3. Bb5+ {[%clk 0:02:59.5]} 3... Nd7 {[%clk 0:02:51.9]} 4.
Ba4 {[%clk 0:02:59.6]} 4... a6 {[%clk 0:02:49.5]} 5. c4 {[%clk 0:02:58.8]} 5...
g6 {[%clk 0:02:44.7]} 6. Nc3 {[%clk 0:02:56.6]} 6... Bg7 {[%clk 0:02:44.1]} 7.
O-O {[%clk 0:02:57.2]} 7... Nf6 {[%clk 0:02:41.4]} 8. d3 {[%clk 0:02:57]} 8...
O-O {[%clk 0:02:38.8]} 9. h3 {[%clk 0:02:57.6]} 9... e5 {[%clk 0:02:18]} 10. Rb1
{[%clk 0:02:54.3]} 10... Ne8 {[%clk 0:02:09.4]} 11. b4 {[%clk 0:02:46.6]} 11...
cxb4 {[%clk 0:02:06.1]} 12. Rxb4 {[%clk 0:02:47.5]} 12... Nc5 {[%clk 0:02:06.1]}
13. Bxe8 {[%clk 0:02:43.3]} 13... Rxe8 {[%clk 0:01:57.6]} 14. Be3 {[%clk
0:02:44.2]} 14... Qa5 {[%clk 0:01:54.8]} 15. Nd5 {[%clk 0:02:37.4]} 15... Be6
{[%clk 0:01:47.9]} 16. Bxc5 {[%clk 0:02:35.6]} 16... dxc5 {[%clk 0:01:32.3]} 17.
Rxb7 {[%clk 0:02:34.9]} 17... Bxd5 {[%clk 0:01:28.5]} 18. exd5 {[%clk
0:02:07.6]} 18... Qxa2 {[%clk 0:01:27]} 19. Ng5 {[%clk 0:02:07.9]} 19... Rab8
{[%clk 0:00:56.3]} 20. Ra7 {[%clk 0:01:25]} 20... Ra8 {[%clk 0:00:27.9]} 21.
Rxf7 {[%clk 0:01:23.8]} 21... Bh6 {[%clk 0:00:24.6]} 22. Rb7 {[%clk 0:00:28]}
22... Bxg5 {[%clk 0:00:23.6]} 23. Qg4 {[%clk 0:00:27.8]} 23... Re7 {[%clk
0:00:08.3]} 24. Rxe7 {[%clk 0:00:25.2]} 24... Bxe7 {[%clk 0:00:09.2]} 25. Qe6+
{[%clk 0:00:25.8]} 25... Kf8 {[%clk 0:00:09.8]} 26. f4 {[%clk 0:00:26.4]} 26...
e4 {[%clk 0:00:06.4]} 27. f5 {[%clk 0:00:26.9]} 1-0

[Event "*** SCC Grand Prix: Titled Tuesday Blitz"]
[Site "Chess.com"]
[Date "2020.10.13"]
[Round "2"]
[White "allvim"]
[Black "PhileKhoob"]
[Result "1-0"]
[WhiteElo "2312"]
[BlackElo "2493"]
[TimeControl "180+1"]
[EndTime "10:16:56 PDT"]
[Termination "allvim won by resignation"]

1. e4 {[%clk 0:03:00.9]} 1... c5 {[%clk 0:02:35.9]} 2. Nf3 {[%clk 0:03:00.7]}
2... d6 {[%clk 0:02:35.4]} 3. d4 {[%clk 0:03:00.9]} 3... cxd4 {[%clk 0:02:36]}
4. Nxd4 {[%clk 0:03:01.8]} 4... Nf6 {[%clk 0:02:36.4]} 5. Nc3 {[%clk 0:03:02.2]}
5... a6 {[%clk 0:02:36.1]} 6. Be3 {[%clk 0:03:02.4]} 6... e5 {[%clk 0:02:36.1]}
7. Nb3 {[%clk 0:03:01.9]} 7... Be7 {[%clk 0:02:36.8]} 8. f3 {[%clk 0:03:01.7]}
8... O-O {[%clk 0:02:37.7]} 9. Qd2 {[%clk 0:03:02.3]} 9... Be6 {[%clk 0:02:38]}
10. O-O-O {[%clk 0:03:02.5]} 10... Nbd7 {[%clk 0:02:38.5]} 11. h4 {[%clk
0:03:00.4]} 11... b5 {[%clk 0:02:38.8]} 12. g4 {[%clk 0:02:59.9]} 12... b4
{[%clk 0:02:39.2]} 13. Na4 {[%clk 0:02:50.2]} 13... Rc8 {[%clk 0:02:24.6]} 14.
Kb1 {[%clk 0:02:48.9]} 14... Qc7 {[%clk 0:02:13.8]} 15. h5 {[%clk 0:02:46.9]}
15... Nc5 {[%clk 0:02:03.1]} 16. Naxc5 {[%clk 0:02:35.6]} 16... dxc5 {[%clk
0:02:04]} 17. g5 {[%clk 0:02:35.3]} 17... Nd7 {[%clk 0:01:55.2]} 18. Bc4 {[%clk
0:01:34.4]} 18... Rfd8 {[%clk 0:01:40.1]} 19. Bxe6 {[%clk 0:01:15.2]} 19... fxe6
{[%clk 0:01:41]} 20. g6 {[%clk 0:01:15.7]} 20... c4 {[%clk 0:01:28.3]} 21. gxh7+
{[%clk 0:00:52.5]} 21... Kh8 {[%clk 0:01:28]} 22. Nc1 {[%clk 0:00:53.4]} 22...
c3 {[%clk 0:01:28]} 23. Qg2 {[%clk 0:00:52.9]} 23... cxb2 {[%clk 0:01:21.4]} 24.
Nb3 {[%clk 0:00:50.2]} 24... Bf6 {[%clk 0:01:04.4]} 25. h6 {[%clk 0:00:45]}
25... g6 {[%clk 0:01:00.1]} 26. Rd2 {[%clk 0:00:29]} 26... Nf8 {[%clk
0:00:58.8]} 27. Rhd1 {[%clk 0:00:23.3]} 27... a5 {[%clk 0:00:46.5]} 28. Bg5
{[%clk 0:00:20.4]} 28... Bxg5 {[%clk 0:00:17.7]} 29. Qxg5 {[%clk 0:00:21.3]}
29... Qxc2+ {[%clk 0:00:17.5]} 30. Rxc2 {[%clk 0:00:20.5]} 30... Rxd1+ {[%clk
0:00:18.4]} 31. Kxb2 {[%clk 0:00:20.2]} 1-0

[Event "*** SCC Grand Prix: Titled Tuesday Blitz"]
[Site "Chess.com"]
[Date "2020.10.13"]
[Round "2"]
[White "NikolaGry"]
[Black "VinzentSpitzl"]
[Result "1-0"]
[WhiteElo "2621"]
[BlackElo "2318"]
[TimeControl "180+1"]
[EndTime "10:16:59 PDT"]
[Termination "NikolaGry won by resignation"]

1. b3 {[%clk 0:03:00.9]} 1... f5 {[%clk 0:02:57.4]} 2. Bb2 {[%clk 0:03:01.1]}
2... Nf6 {[%clk 0:02:57.9]} 3. c4 {[%clk 0:03:01.2]} 3... g6 {[%clk 0:02:58]} 4.
Bxf6 {[%clk 0:03:00.3]} 4... exf6 {[%clk 0:02:58]} 5. Nc3 {[%clk 0:03:00.9]}
5... b6 {[%clk 0:02:53.7]} 6. Nf3 {[%clk 0:02:53.4]} 6... Bb7 {[%clk 0:02:53.5]}
7. e3 {[%clk 0:02:53.7]} 7... Bg7 {[%clk 0:02:53.4]} 8. g3 {[%clk 0:02:53.4]}
8... O-O {[%clk 0:02:53.5]} 9. Bg2 {[%clk 0:02:53.3]} 9... d6 {[%clk 0:02:52.2]}
10. O-O {[%clk 0:02:52]} 10... Nd7 {[%clk 0:02:52]} 11. d4 {[%clk 0:02:50.2]}
11... Re8 {[%clk 0:02:33.4]} 12. Ne1 {[%clk 0:02:45.5]} 12... Bxg2 {[%clk
0:02:27.4]} 13. Nxg2 {[%clk 0:02:45.4]} 13... c6 {[%clk 0:02:23.1]} 14. Qf3
{[%clk 0:02:43.8]} 14... Qc7 {[%clk 0:02:19]} 15. b4 {[%clk 0:02:42.6]} 15...
Nf8 {[%clk 0:02:05.6]} 16. a4 {[%clk 0:02:25.5]} 16... Ne6 {[%clk 0:02:04]} 17.
h4 {[%clk 0:02:25.5]} 17... c5 {[%clk 0:01:40.3]} 18. Nd5 {[%clk 0:01:59.1]}
18... Qd7 {[%clk 0:01:20.2]} 19. dxc5 {[%clk 0:01:49.4]} 19... dxc5 {[%clk
0:01:14.9]} 20. b5 {[%clk 0:01:49.3]} 20... Rad8 {[%clk 0:01:06.3]} 21. a5
{[%clk 0:01:44.9]} 21... Nc7 {[%clk 0:00:42.1]} 22. Ngf4 {[%clk 0:01:35.4]}
22... Nxd5 {[%clk 0:00:41]} 23. Nxd5 {[%clk 0:01:34.9]} 23... Re6 {[%clk
0:00:41]} 24. axb6 {[%clk 0:01:32.6]} 24... axb6 {[%clk 0:00:40.7]} 25. Ra6
{[%clk 0:01:32.2]} 25... Rb8 {[%clk 0:00:39.9]} 26. Rfa1 {[%clk 0:01:30.6]}
26... Bf8 {[%clk 0:00:35.4]} 27. h5 {[%clk 0:01:05.1]} 27... Kf7 {[%clk
0:00:31.9]} 28. hxg6+ {[%clk 0:00:26.4]} 28... hxg6 {[%clk 0:00:32.8]} 29. Qh1
{[%clk 0:00:26.1]} 29... Kg7 {[%clk 0:00:32.4]} 30. Ra7 {[%clk 0:00:22.3]} 30...
Rb7 {[%clk 0:00:32.3]} 31. Rxb7 {[%clk 0:00:20.7]} 31... Qxb7 {[%clk 0:00:33.2]}
32. Ra6 {[%clk 0:00:20.5]} 32... Be7 {[%clk 0:00:25.7]} 33. Nf4 {[%clk
0:00:19.2]} 33... Rd6 {[%clk 0:00:24.7]} 34. Qxb7 {[%clk 0:00:18.3]} 1-0

[Event "*** SCC Grand Prix: Titled Tuesday Blitz"]
[Site "Chess.com"]
[Date "2020.10.13"]
[Round "2"]
[White "Ermito2020"]
[Black "ExcitingTrap"]
[Result "1-0"]
[WhiteElo "2654"]
[BlackElo "2294"]
[TimeControl "180+1"]
[EndTime "10:17:02 PDT"]
[Termination "Ermito2020 won by resignation"]

1. e4 {[%clk 0:03:00.9]} 1... e6 {[%clk 0:02:59.4]} 2. d4 {[%clk 0:03:00]} 2...
d5 {[%clk 0:02:59.7]} 3. Nc3 {[%clk 0:03:00.5]} 3... Nf6 {[%clk 0:02:59.7]} 4.
e5 {[%clk 0:03:00.5]} 4... Nfd7 {[%clk 0:02:59.8]} 5. f4 {[%clk 0:03:01.1]} 5...
c5 {[%clk 0:02:59.7]} 6. Nf3 {[%clk 0:03:01.6]} 6... Nc6 {[%clk 0:03:00]} 7. Be3
{[%clk 0:03:02.1]} 7... Be7 {[%clk 0:02:58.9]} 8. Qd2 {[%clk 0:03:01.1]} 8...
O-O {[%clk 0:02:57.9]} 9. dxc5 {[%clk 0:02:58.9]} 9... Nxc5 {[%clk 0:02:57.4]}
10. O-O-O {[%clk 0:02:57.8]} 10... Qa5 {[%clk 0:02:57.3]} 11. Kb1 {[%clk
0:02:47.1]} 11... Rd8 {[%clk 0:02:55.7]} 12. f5 {[%clk 0:02:11.4]} 12... exf5
{[%clk 0:02:28.3]} 13. Nxd5 {[%clk 0:02:10.2]} 13... Qxd2 {[%clk 0:02:28.1]} 14.
Nxe7+ {[%clk 0:01:57.6]} 14... Nxe7 {[%clk 0:02:29]} 15. Rxd2 {[%clk 0:01:57.8]}
15... Rxd2 {[%clk 0:02:25.2]} 16. Nxd2 {[%clk 0:01:58.7]} 16... Ne4 {[%clk
0:02:13.3]} 17. Nxe4 {[%clk 0:01:48]} 17... fxe4 {[%clk 0:02:14.2]} 18. Bc4
{[%clk 0:01:48.3]} 18... Bf5 {[%clk 0:02:09.8]} 19. Rd1 {[%clk 0:01:45.5]} 19...
Rc8 {[%clk 0:02:02.7]} 20. Bb3 {[%clk 0:01:42.3]} 20... h6 {[%clk 0:01:59.8]}
21. Bxa7 {[%clk 0:01:41.5]} 21... Nc6 {[%clk 0:01:56.8]} 22. Bg1 {[%clk
0:01:16.9]} 22... Nxe5 {[%clk 0:01:53.9]} 23. Rd5 {[%clk 0:01:16.4]} 23... Re8
{[%clk 0:01:34.3]} 24. Ba4 {[%clk 0:01:12.1]} 24... Re6 {[%clk 0:01:13.7]} 25.
Bd4 {[%clk 0:01:08.9]} 25... f6 {[%clk 0:00:58.5]} 26. Kc1 {[%clk 0:01:07.2]}
26... Kh7 {[%clk 0:00:56.7]} 27. Bxe5 {[%clk 0:01:06.8]} 27... Rxe5 {[%clk
0:00:55.7]} 28. Rxe5 {[%clk 0:01:06.5]} 28... fxe5 {[%clk 0:00:56.6]} 29. Kd2
{[%clk 0:01:06.9]} 29... Be6 {[%clk 0:00:46.3]} 30. a3 {[%clk 0:01:01.6]} 30...
Kg6 {[%clk 0:00:44.8]} 31. Ke3 {[%clk 0:01:01.1]} 31... Kf5 {[%clk 0:00:44.6]}
32. Bb5 {[%clk 0:00:58.4]} 32... Bd5 {[%clk 0:00:43.7]} 33. a4 {[%clk
0:00:55.8]} 33... b6 {[%clk 0:00:41.1]} 34. b4 {[%clk 0:00:54.6]} 34... Bb7
{[%clk 0:00:33.1]} 35. Bd7+ {[%clk 0:00:53.6]} 35... Kf6 {[%clk 0:00:32]} 36. c4
{[%clk 0:00:52]} 36... Ke7 {[%clk 0:00:31.3]} 37. Bf5 {[%clk 0:00:50.6]} 37...
Bc6 {[%clk 0:00:21.7]} 38. a5 {[%clk 0:00:49.9]} 38... bxa5 {[%clk 0:00:20.2]}
39. bxa5 {[%clk 0:00:50.8]} 39... Kd6 {[%clk 0:00:19.5]} 40. Bxe4 {[%clk
0:00:50.8]} 40... Kc5 {[%clk 0:00:08.7]} 41. Bxc6 {[%clk 0:00:49.6]} 41... Kxc6
{[%clk 0:00:09.2]} 42. Ke4 {[%clk 0:00:50.3]} 42... Kc5 {[%clk 0:00:09.4]} 43.
Kxe5 {[%clk 0:00:49.6]} 1-0

[Event "*** SCC Grand Prix: Titled Tuesday Blitz"]
[Site "Chess.com"]
[Date "2020.10.13"]
[Round "2"]
[White "Mazetovic"]
[Black "Chessdude1987"]
[Result "1-0"]
[WhiteElo "2646"]
[BlackElo "2258"]
[TimeControl "180+1"]
[EndTime "10:17:02 PDT"]
[Termination "Mazetovic won by checkmate"]

1. e4 {[%clk 0:02:55.6]} 1... e6 {[%clk 0:02:59.6]} 2. d3 {[%clk 0:02:54.1]}
2... c5 {[%clk 0:02:58.3]} 3. Nf3 {[%clk 0:02:53.5]} 3... Nc6 {[%clk 0:02:58.1]}
4. g3 {[%clk 0:02:54]} 4... g6 {[%clk 0:02:58.1]} 5. Bg2 {[%clk 0:02:53.9]} 5...
Bg7 {[%clk 0:02:55.3]} 6. h4 {[%clk 0:02:54.1]} 6... h6 {[%clk 0:02:40.7]} 7.
O-O {[%clk 0:02:52.9]} 7... Nge7 {[%clk 0:02:40.5]} 8. Re1 {[%clk 0:02:52.4]}
8... O-O {[%clk 0:02:39.7]} 9. Nbd2 {[%clk 0:02:47.7]} 9... d6 {[%clk
0:02:39.7]} 10. Nc4 {[%clk 0:02:38.6]} 10... b5 {[%clk 0:02:38.2]} 11. Ne3
{[%clk 0:02:37.1]} 11... a5 {[%clk 0:02:37.4]} 12. Ng4 {[%clk 0:02:34.4]} 12...
Kh7 {[%clk 0:02:36.5]} 13. Qd2 {[%clk 0:02:26]} 13... Ng8 {[%clk 0:02:34.8]} 14.
e5 {[%clk 0:02:23.9]} 14... d5 {[%clk 0:02:31.4]} 15. Qe2 {[%clk 0:02:08.7]}
15... f5 {[%clk 0:02:27.1]} 16. exf6 {[%clk 0:02:06.7]} 16... Nxf6 {[%clk
0:02:26.7]} 17. Nge5 {[%clk 0:02:03]} 17... Ne7 {[%clk 0:02:18]} 18. Bf4 {[%clk
0:01:46.8]} 18... c4 {[%clk 0:02:08.8]} 19. Nd4 {[%clk 0:01:43.9]} 19... cxd3
{[%clk 0:02:04.3]} 20. cxd3 {[%clk 0:01:37.9]} 20... b4 {[%clk 0:02:02.6]} 21.
Rac1 {[%clk 0:01:36.7]} 21... Qb6 {[%clk 0:01:58.5]} 22. Be3 {[%clk 0:01:17.8]}
22... Qa6 {[%clk 0:01:45.9]} 23. f4 {[%clk 0:01:16.2]} 23... Nf5 {[%clk
0:01:39.2]} 24. Nxf5 {[%clk 0:01:15.7]} 24... exf5 {[%clk 0:01:32.9]} 25. Rc7
{[%clk 0:01:15]} 25... Qd6 {[%clk 0:01:23.9]} 26. Rec1 {[%clk 0:01:13.3]} 26...
Be6 {[%clk 0:01:17.2]} 27. R1c6 {[%clk 0:01:11.9]} 27... Qd8 {[%clk 0:01:12.6]}
28. Rxg7+ {[%clk 0:01:08.2]} 28... Kxg7 {[%clk 0:01:12.6]} 29. Rxe6 {[%clk
0:01:08.9]} 29... Rc8 {[%clk 0:01:11.2]} 30. Bd4 {[%clk 0:01:08.5]} 30... Rc1+
{[%clk 0:01:07.6]} 31. Kh2 {[%clk 0:01:06.7]} 31... Qc8 {[%clk 0:01:07.6]} 32.
Re7+ {[%clk 0:01:05.8]} 32... Kg8 {[%clk 0:01:06.4]} 33. Nxg6 {[%clk 0:01:04.4]}
33... Rc2 {[%clk 0:01:03.9]} 34. Bxd5+ {[%clk 0:00:54]} 34... Rf7 {[%clk
0:00:48.4]} 35. Bxf7+ {[%clk 0:00:53.8]} 35... Kh7 {[%clk 0:00:48]} 36. Bc4+
{[%clk 0:00:49.7]} 36... Kxg6 {[%clk 0:00:46.2]} 37. Qxc2 {[%clk 0:00:49.4]}
37... Ng4+ {[%clk 0:00:46]} 38. Kg1 {[%clk 0:00:49]} 38... Qd8 {[%clk
0:00:41.5]} 39. Bc5 {[%clk 0:00:31]} 39... Qc8 {[%clk 0:00:40.8]} 40. d4 {[%clk
0:00:30.1]} 40... Qc6 {[%clk 0:00:38.4]} 41. Qe2 {[%clk 0:00:28.8]} 41... Qe4
{[%clk 0:00:28.2]} 42. Rxe4 {[%clk 0:00:27.1]} 42... fxe4 {[%clk 0:00:27.5]} 43.
Qxg4+ {[%clk 0:00:27.4]} 43... Kh7 {[%clk 0:00:26.5]} 44. Qg8# {[%clk
0:00:27.2]} 1-0

[Event "*** SCC Grand Prix: Titled Tuesday Blitz"]
[Site "Chess.com"]
[Date "2020.10.13"]
[Round "2"]
[White "rugbyclub"]
[Black "WildTricks"]
[Result "0-1"]
[WhiteElo "2216"]
[BlackElo "2441"]
[TimeControl "180+1"]
[EndTime "10:17:02 PDT"]
[Termination "WildTricks won by checkmate"]

1. e4 {[%clk 0:03:00.9]} 1... c5 {[%clk 0:02:59.5]} 2. Nf3 {[%clk 0:03:00.7]}
2... d6 {[%clk 0:02:59.9]} 3. Bb5+ {[%clk 0:03:00.3]} 3... Nd7 {[%clk
0:02:59.4]} 4. Ba4 {[%clk 0:02:57.6]} 4... Nf6 {[%clk 0:02:57.9]} 5. O-O {[%clk
0:02:54.6]} 5... g6 {[%clk 0:02:52.6]} 6. c4 {[%clk 0:02:54.2]} 6... Bg7 {[%clk
0:02:52.4]} 7. Nc3 {[%clk 0:02:54.2]} 7... O-O {[%clk 0:02:52.3]} 8. d4 {[%clk
0:02:54]} 8... cxd4 {[%clk 0:02:52.3]} 9. Nxd4 {[%clk 0:02:53.8]} 9... Qb6
{[%clk 0:02:52.9]} 10. Be3 {[%clk 0:02:46]} 10... Qxb2 {[%clk 0:02:50.6]} 11.
Ncb5 {[%clk 0:02:41.2]} 11... Nxe4 {[%clk 0:02:41]} 12. Rb1 {[%clk 0:01:55.3]}
12... Qxa2 {[%clk 0:02:37.2]} 13. Ra1 {[%clk 0:01:31.5]} 13... Qxc4 {[%clk
0:02:35.2]} 14. Bb3 {[%clk 0:01:30.9]} 14... Qc5 {[%clk 0:02:13.4]} 15. Rc1
{[%clk 0:01:13]} 15... Qe5 {[%clk 0:02:05.7]} 16. f4 {[%clk 0:01:02.2]} 16...
Qf6 {[%clk 0:01:55]} 17. Nc7 {[%clk 0:00:59.4]} 17... Rb8 {[%clk 0:01:44.9]} 18.
Nd5 {[%clk 0:00:58.6]} 18... Qh4 {[%clk 0:01:44]} 19. g3 {[%clk 0:00:47]} 19...
Nxg3 {[%clk 0:01:43.5]} 20. hxg3 {[%clk 0:00:45.7]} 20... Qxg3+ {[%clk
0:01:42.2]} 21. Kh1 {[%clk 0:00:46]} 21... Qh4+ {[%clk 0:01:38.9]} 22. Kg2
{[%clk 0:00:43]} 22... e6 {[%clk 0:01:10.2]} 23. Rh1 {[%clk 0:00:42.1]} 23...
Qd8 {[%clk 0:01:09.8]} 24. Nc3 {[%clk 0:00:42]} 24... Nc5 {[%clk 0:01:09.3]} 25.
Ba2 {[%clk 0:00:31.9]} 25... b5 {[%clk 0:01:00.4]} 26. Kg3 {[%clk 0:00:25.8]}
26... b4 {[%clk 0:00:58]} 27. Nce2 {[%clk 0:00:20.7]} 27... Bb7 {[%clk
0:00:55.6]} 28. Nf3 {[%clk 0:00:15.7]} 28... Ne4+ {[%clk 0:00:50.5]} 29. Kg2
{[%clk 0:00:15]} 29... Qa5 {[%clk 0:00:43]} 30. Bb3 {[%clk 0:00:13.9]} 30... Qf5
{[%clk 0:00:35.8]} 31. Qe1 {[%clk 0:00:13.4]} 31... Qg4+ {[%clk 0:00:34.4]} 32.
Ng3 {[%clk 0:00:12.1]} 32... Ng5 {[%clk 0:00:30]} 33. Bd1 {[%clk 0:00:09.6]}
33... Nxf3 {[%clk 0:00:28.2]} 34. Bxf3 {[%clk 0:00:09.7]} 34... Qxf3+ {[%clk
0:00:27.7]} 35. Kh2 {[%clk 0:00:08.5]} 35... Qg2# {[%clk 0:00:27.6]} 0-1

[Event "*** SCC Grand Prix: Titled Tuesday Blitz"]
[Site "Chess.com"]
[Date "2020.10.13"]
[Round "2"]
[White "Onischuk_V"]
[Black "ajdemipopushi"]
[Result "1-0"]
[WhiteElo "2826"]
[BlackElo "2348"]
[TimeControl "180+1"]
[EndTime "10:17:04 PDT"]
[Termination "Onischuk_V won on time"]

1. e4 {[%clk 0:03:00.1]} 1... c5 {[%clk 0:02:58.9]} 2. Nc3 {[%clk 0:02:58.6]}
2... g6 {[%clk 0:02:59.3]} 3. Nge2 {[%clk 0:02:56.1]} 3... Bg7 {[%clk
0:02:59.5]} 4. d4 {[%clk 0:02:53.6]} 4... cxd4 {[%clk 0:02:59.7]} 5. Nxd4 {[%clk
0:02:54.2]} 5... Nc6 {[%clk 0:03:00.5]} 6. Nb3 {[%clk 0:02:54.4]} 6... Nf6
{[%clk 0:03:00.2]} 7. g3 {[%clk 0:02:54.8]} 7... O-O {[%clk 0:02:58.4]} 8. Bg2
{[%clk 0:02:54.8]} 8... d6 {[%clk 0:02:57.9]} 9. h3 {[%clk 0:02:55.4]} 9... a6
{[%clk 0:02:58]} 10. O-O {[%clk 0:02:52]} 10... Rb8 {[%clk 0:02:58.2]} 11. a4
{[%clk 0:02:48.7]} 11... b5 {[%clk 0:02:57]} 12. axb5 {[%clk 0:02:46.3]} 12...
axb5 {[%clk 0:02:57.2]} 13. Re1 {[%clk 0:02:43.3]} 13... b4 {[%clk 0:02:38.6]}
14. Nd5 {[%clk 0:02:42]} 14... Nd7 {[%clk 0:02:38.6]} 15. Ra2 {[%clk 0:02:33]}
15... e6 {[%clk 0:02:24.1]} 16. Ne3 {[%clk 0:02:32.2]} 16... Qc7 {[%clk
0:02:24.2]} 17. Nc4 {[%clk 0:02:30.7]} 17... Nd4 {[%clk 0:01:49.1]} 18. Nxd4
{[%clk 0:02:07.6]} 18... Qxc4 {[%clk 0:01:48.3]} 19. Nb3 {[%clk 0:02:08.2]}
19... Qc7 {[%clk 0:01:37.1]} 20. Be3 {[%clk 0:02:08.1]} 20... Ne5 {[%clk
0:01:31.2]} 21. Ra7 {[%clk 0:02:03.1]} 21... Rb7 {[%clk 0:01:27.1]} 22. Rxb7
{[%clk 0:01:30.9]} 22... Bxb7 {[%clk 0:01:26.9]} 23. Bd4 {[%clk 0:01:31.6]}
23... Rc8 {[%clk 0:01:21.6]} 24. Qd2 {[%clk 0:00:53.7]} 24... Rb8 {[%clk
0:00:28]} 25. Ra1 {[%clk 0:00:47.9]} 25... Nc4 {[%clk 0:00:21.3]} 26. Qc1 {[%clk
0:00:46.4]} 26... e5 {[%clk 0:00:19.4]} 27. Ba7 {[%clk 0:00:39]} 27... Ra8
{[%clk 0:00:18]} 28. Nd2 {[%clk 0:00:38.9]} 28... Nxd2 {[%clk 0:00:16]} 29. Qxd2
{[%clk 0:00:38.9]} 29... Bxe4 {[%clk 0:00:15.2]} 30. Bxe4 {[%clk 0:00:37.5]}
30... Rxa7 {[%clk 0:00:15.6]} 31. Rxa7 {[%clk 0:00:37.7]} 31... Qxa7 {[%clk
0:00:15.8]} 32. Qxb4 {[%clk 0:00:38.2]} 32... Bf8 {[%clk 0:00:15.1]} 33. Bd5
{[%clk 0:00:37.1]} 33... Kg7 {[%clk 0:00:14.6]} 34. b3 {[%clk 0:00:34.3]} 34...
Qd4 {[%clk 0:00:11.1]} 35. Qb7 {[%clk 0:00:33.4]} 1-0